[Event "Titled Tuesday Blitz April 12 Late 2022"]
[White "Przybylski, Wojciech"]
[Black "Urazayev, Arystanbek"]
[WhiteFideId "1117599"]
[BlackFideId "13709810"]
[WhiteElo "2133"]
[BlackElo "2422"]
[Result "0-1"]
[Round "01"]
[TimeControl "180+1"]
[Date "2022.04.13"]
[WhiteClock "0:00:09"]
[BlackClock "0:01:08"]

1. e4 {[%clk 0:02:59]}  c5 {[%clk 0:02:59]} 2. Nf3 {[%clk 0:02:55]}  d6 {[%clk 0:02:59]} 3. Bb5+ {[%clk 0:02:54]}  Bd7 {[%clk 0:02:59]} 4. c4 {[%clk 0:02:53]}  g6 {[%clk 0:02:58]} 5. O-O {[%clk 0:02:52]}  Bg7 {[%clk 0:02:58]} 6. d4 {[%clk 0:02:51]}  cxd4 {[%clk 0:02:58]} 7. Nxd4 {[%clk 0:02:51]}  Nf6 {[%clk 0:02:58]} 8. Nc3 {[%clk 0:02:50]}  O-O {[%clk 0:02:58]} 9. h3 {[%clk 0:02:49]}  a6 {[%clk 0:02:59]} 10. Bxd7 {[%clk 0:02:46]}  Nbxd7 {[%clk 0:03:00]} 11. Be3 {[%clk 0:02:44]}  Rc8 {[%clk 0:03:00]} 12. Qe2 {[%clk 0:02:31]}  Ne5 {[%clk 0:02:45]} 13. b3 {[%clk 0:02:30]}  b5 {[%clk 0:02:46]} 14. Nd5 {[%clk 0:02:17]}  bxc4 {[%clk 0:02:45]} 15. f4 {[%clk 0:02:16]}  Ned7 {[%clk 0:02:34]} 16. Nxf6+ {[%clk 0:01:47]}  Nxf6 {[%clk 0:02:34]} 17. e5 {[%clk 0:01:43]}  dxe5 {[%clk 0:02:33]} 18. fxe5 {[%clk 0:01:43]}  Nd5 {[%clk 0:02:33]} 19. Bf2 {[%clk 0:01:37]}  c3 {[%clk 0:02:24]} 20. e6 {[%clk 0:01:31]}  f5 {[%clk 0:02:21]} 21. Rfd1 {[%clk 0:01:25]}  Qa5 {[%clk 0:02:18]} 22. Rac1 {[%clk 0:01:19]}  Rfd8 {[%clk 0:02:14]} 23. Qf3 {[%clk 0:01:13]}  Qxa2 {[%clk 0:01:38]} 24. g4 {[%clk 0:00:46]}  c2 {[%clk 0:01:31]} 25. Re1 {[%clk 0:00:43]}  Rc3 {[%clk 0:01:19]} 26. Qe2 {[%clk 0:00:37]}  Nf4 {[%clk 0:01:18]} 27. Qd2 {[%clk 0:00:34]}  Nxh3+ {[%clk 0:01:13]} 28. Kh2 {[%clk 0:00:27]}  Rdc8 {[%clk 0:01:14]} 29. gxf5 {[%clk 0:00:21]}  Nxf2 {[%clk 0:01:12]} 30. Qxf2 {[%clk 0:00:19]}  Bxd4 {[%clk 0:01:09]} 31. Qxd4 {[%clk 0:00:17]}  Qxb3 {[%clk 0:01:10]} 32. Qg4 {[%clk 0:00:13]}  R8c4 {[%clk 0:01:07]} 33. Qg5 {[%clk 0:00:13]}  Rh3+ {[%clk 0:01:07]} 34. Kg2 {[%clk 0:00:08]}  Qf3+ {[%clk 0:01:07]} 35. Kg1 {[%clk 0:00:09]}  Rh1# {[%clk 0:01:08]} 0-1


[Site "https://www.chess.com"]

[Event "Titled Tuesday Blitz April 12 Late 2022"]
[White "Rangel, Daniel"]
[Black "Bazeev, German"]
[WhiteFideId "2124475"]
[BlackFideId "24119350"]
[WhiteElo "2225"]
[BlackElo "2493"]
[Result "0-1"]
[Round "01"]
[TimeControl "180+1"]
[Date "2022.04.13"]
[WhiteClock "0:00:10"]
[BlackClock "0:00:08"]

1. b3 {[%clk 0:03:00]}  e5 {[%clk 0:02:59]} 2. Bb2 {[%clk 0:03:01]}  e4 {[%clk 0:03:00]} 3. e3 {[%clk 0:03:00]}  d5 {[%clk 0:02:59]} 4. d3 {[%clk 0:03:00]}  Nf6 {[%clk 0:02:59]} 5. Nd2 {[%clk 0:02:56]}  Bf5 {[%clk 0:02:52]} 6. dxe4 {[%clk 0:02:54]}  Nxe4 {[%clk 0:02:53]} 7. Nxe4 {[%clk 0:02:53]}  Bxe4 {[%clk 0:02:54]} 8. Bd3 {[%clk 0:02:53]}  Bb4+ {[%clk 0:02:53]} 9. c3 {[%clk 0:02:53]}  Bd6 {[%clk 0:02:54]} 10. Bxe4 {[%clk 0:02:50]}  dxe4 {[%clk 0:02:54]} 11. Ne2 {[%clk 0:02:50]}  Nc6 {[%clk 0:02:51]} 12. Ng3 {[%clk 0:02:41]}  Bxg3 {[%clk 0:02:39]} 13. hxg3 {[%clk 0:02:42]}  Ne5 {[%clk 0:02:35]} 14. Kf1 {[%clk 0:02:25]}  Nd3 {[%clk 0:02:23]} 15. Ba3 {[%clk 0:02:16]}  Qf6 {[%clk 0:02:23]} 16. Qc2 {[%clk 0:02:03]}  O-O-O {[%clk 0:02:21]} 17. Kg1 {[%clk 0:01:40]}  h5 {[%clk 0:02:18]} 18. Rh4 {[%clk 0:01:37]}  Qf5 {[%clk 0:02:14]} 19. c4 {[%clk 0:01:16]}  g5 {[%clk 0:02:12]} 20. Rh3 {[%clk 0:01:13]}  g4 {[%clk 0:02:05]} 21. Rh4 {[%clk 0:01:12]}  Qe5 {[%clk 0:01:59]} 22. Rb1 {[%clk 0:01:08]}  f5 {[%clk 0:01:42]} 23. Bb2 {[%clk 0:01:00]}  Nxb2 {[%clk 0:01:41]} 24. Qxb2 {[%clk 0:01:01]}  Qxb2 {[%clk 0:01:35]} 25. Rxb2 {[%clk 0:01:01]}  Rd1+ {[%clk 0:01:35]} 26. Kh2 {[%clk 0:01:02]}  Kd7 {[%clk 0:01:34]} 27. Rc2 {[%clk 0:00:57]}  Ke6 {[%clk 0:01:24]} 28. f3 {[%clk 0:00:48]}  exf3 {[%clk 0:01:15]} 29. gxf3 {[%clk 0:00:49]}  Kf6 {[%clk 0:01:15]} 30. fxg4 {[%clk 0:00:37]}  fxg4 {[%clk 0:01:16]} 31. Rf2+ {[%clk 0:00:37]}  Kg6 {[%clk 0:01:16]} 32. Kg2 {[%clk 0:00:36]}  Re8 {[%clk 0:01:12]} 33. Re2 {[%clk 0:00:36]}  Red8 {[%clk 0:01:04]} 34. Rh1 {[%clk 0:00:35]}  R8d2 {[%clk 0:01:05]} 35. Re1 {[%clk 0:00:32]}  Kf5 {[%clk 0:01:00]} 36. Kf2 {[%clk 0:00:30]}  Rxe2+ {[%clk 0:00:57]} 37. Kxe2 {[%clk 0:00:21]}  Rxe1+ {[%clk 0:00:29]} 38. Kxe1 {[%clk 0:00:22]}  Ke4 {[%clk 0:00:30]} 39. Ke2 {[%clk 0:00:22]}  c5 {[%clk 0:00:31]} 40. a3 {[%clk 0:00:18]}  b6 {[%clk 0:00:27]} 41. b4 {[%clk 0:00:17]}  a6 {[%clk 0:00:20]} 42. b5 {[%clk 0:00:15]}  axb5 {[%clk 0:00:05]} 43. cxb5 {[%clk 0:00:16]}  c4 {[%clk 0:00:06]} 44. a4 {[%clk 0:00:16]}  h4 {[%clk 0:00:05]} 45. gxh4 {[%clk 0:00:12]}  c3 {[%clk 0:00:05]} 46. a5 {[%clk 0:00:13]}  c2 {[%clk 0:00:04]} 47. Kd2 {[%clk 0:00:13]}  g3 {[%clk 0:00:05]} 48. a6 {[%clk 0:00:13]}  c1=Q+ {[%clk 0:00:05]} 49. Kxc1 {[%clk 0:00:11]}  g2 {[%clk 0:00:06]} 50. Kc2 {[%clk 0:00:10]}  g1=Q {[%clk 0:00:07]} 51. a7 {[%clk 0:00:11]}  Qg8 {[%clk 0:00:07]} 52. Kc3 {[%clk 0:00:09]}  Qa8 {[%clk 0:00:08]} 53. Kb4 {[%clk 0:00:10]}  Qxa7 {[%clk 0:00:08]} 0-1


[Site "https://www.chess.com"]

[Event "Titled Tuesday Blitz April 12 Late 2022"]
[White "Ronka, Erik"]
[Black "Bryakin, Mikhail"]
[WhiteFideId "505080"]
[BlackFideId "4165314"]
[WhiteElo "2264"]
[BlackElo "2417"]
[Result "0-1"]
[Round "01"]
[TimeControl "180+1"]
[Date "2022.04.12"]
[WhiteClock "0:00:02"]
[BlackClock "0:00:10"]

1. d4 {[%clk 0:02:57]}  Nf6 {[%clk 0:02:51]} 2. Nf3 {[%clk 0:02:57]}  g6 {[%clk 0:02:48]} 3. g3 {[%clk 0:02:58]}  Bg7 {[%clk 0:02:43]} 4. Bg2 {[%clk 0:02:58]}  O-O {[%clk 0:02:42]} 5. O-O {[%clk 0:02:57]}  d6 {[%clk 0:02:37]} 6. b3 {[%clk 0:02:58]}  Nbd7 {[%clk 0:02:28]} 7. Bb2 {[%clk 0:02:58]}  c6 {[%clk 0:02:27]} 8. Re1 {[%clk 0:02:56]}  Qc7 {[%clk 0:02:25]} 9. e4 {[%clk 0:02:55]}  e5 {[%clk 0:02:25]} 10. Nc3 {[%clk 0:02:50]}  Re8 {[%clk 0:02:21]} 11. Qd2 {[%clk 0:02:48]}  a6 {[%clk 0:02:13]} 12. a4 {[%clk 0:02:45]}  b6 {[%clk 0:02:08]} 13. Ba3 {[%clk 0:02:35]}  Bb7 {[%clk 0:02:03]} 14. Rad1 {[%clk 0:02:28]}  Rad8 {[%clk 0:01:48]} 15. Qc1 {[%clk 0:02:11]}  b5 {[%clk 0:01:42]} 16. dxe5 {[%clk 0:01:54]}  dxe5 {[%clk 0:01:31]} 17. Bd6 {[%clk 0:01:53]}  Qc8 {[%clk 0:01:31]} 18. Qa3 {[%clk 0:01:50]}  Bf8 {[%clk 0:01:25]} 19. Bh3 {[%clk 0:01:48]}  Bxd6 {[%clk 0:01:13]} 20. Rxd6 {[%clk 0:01:30]}  Qc7 {[%clk 0:00:58]} 21. Red1 {[%clk 0:01:27]}  Kg7 {[%clk 0:00:58]} 22. b4 {[%clk 0:00:48]}  Nb6 {[%clk 0:00:36]} 23. Rxd8 {[%clk 0:00:43]}  Rxd8 {[%clk 0:00:37]} 24. Rxd8 {[%clk 0:00:37]}  Qxd8 {[%clk 0:00:38]} 25. axb5 {[%clk 0:00:35]}  cxb5 {[%clk 0:00:36]} 26. Nxe5 {[%clk 0:00:24]}  Qe7 {[%clk 0:00:32]} 27. f4 {[%clk 0:00:19]}  h5 {[%clk 0:00:28]} 28. Qc1 {[%clk 0:00:17]}  Qxb4 {[%clk 0:00:22]} 29. Qe3 {[%clk 0:00:14]}  Nc4 {[%clk 0:00:20]} 30. Nxc4 {[%clk 0:00:14]}  Qxc4 {[%clk 0:00:21]} 31. Bg2 {[%clk 0:00:11]}  b4 {[%clk 0:00:20]} 32. Nd5 {[%clk 0:00:07]}  Bxd5 {[%clk 0:00:18]} 33. exd5 {[%clk 0:00:07]}  Qxc2 {[%clk 0:00:18]} 34. h3 {[%clk 0:00:06]}  Qd1+ {[%clk 0:00:18]} 35. Kh2 {[%clk 0:00:06]}  b3 {[%clk 0:00:19]} 36. Qc3 {[%clk 0:00:05]}  a5 {[%clk 0:00:18]} 37. d6 {[%clk 0:00:05]}  a4 {[%clk 0:00:16]} 38. Qb4 {[%clk 0:00:04]}  b2 {[%clk 0:00:15]} 39. Qxb2 {[%clk 0:00:03]}  Qxd6 {[%clk 0:00:16]} 40. Qa2 {[%clk 0:00:02]}  a3 {[%clk 0:00:16]} 41. Qf2 {[%clk 0:00:01]}  Qb4 {[%clk 0:00:15]} 42. f5 {[%clk 0:00:02]}  Qb2 {[%clk 0:00:15]} 43. Qa7 {[%clk 0:00:02]}  gxf5 {[%clk 0:00:13]} 44. Qa5 {[%clk 0:00:02]}  a2 {[%clk 0:00:12]} 45. Qxf5 {[%clk 0:00:01]}  a1=Q {[%clk 0:00:13]} 46. Qg5+ {[%clk 0:00:01]}  Kh7 {[%clk 0:00:13]} 47. Qf5+ {[%clk 0:00:01]}  Kg7 {[%clk 0:00:13]} 48. Qg5+ {[%clk 0:00:02]}  Kf8 {[%clk 0:00:10]} 49. Qh6+ {[%clk 0:00:03]}  Ke7 {[%clk 0:00:10]} 50. Qe3+ {[%clk 0:00:03]}  Qe5 {[%clk 0:00:11]} 51. Qa7+ {[%clk 0:00:02]}  Qxa7 {[%clk 0:00:10]} 0-1


[Site "https://www.chess.com"]

[Event "Titled Tuesday Blitz April 12 Late 2022"]
[White "Sailer, Mike"]
[Black "Romanchuk, Viktor"]
[WhiteFideId "2012901"]
[BlackFideId "14109271"]
[WhiteElo "2109"]
[BlackElo "2242"]
[Result "0-1"]
[Round "01"]
[TimeControl "180+1"]
[Date "2022.04.13"]
[WhiteClock "0:01:49"]
[BlackClock "0:01:42"]

1. d4 {[%clk 0:02:59]}  d5 {[%clk 0:02:59]} 2. Nf3 {[%clk 0:02:58]}  Nf6 {[%clk 0:02:58]} 3. Bf4 {[%clk 0:02:57]}  c5 {[%clk 0:02:58]} 4. e3 {[%clk 0:02:57]}  Nc6 {[%clk 0:02:58]} 5. Nc3 {[%clk 0:02:53]}  cxd4 {[%clk 0:02:52]} 6. exd4 {[%clk 0:02:47]}  a6 {[%clk 0:02:51]} 7. h3 {[%clk 0:02:36]}  Bf5 {[%clk 0:02:40]} 8. a3 {[%clk 0:02:30]}  e6 {[%clk 0:02:35]} 9. Be2 {[%clk 0:02:30]}  Be7 {[%clk 0:02:34]} 10. O-O {[%clk 0:02:30]}  O-O {[%clk 0:02:34]} 11. Ne5 {[%clk 0:02:24]}  Rc8 {[%clk 0:02:29]} 12. Re1 {[%clk 0:02:22]}  Qb6 {[%clk 0:02:27]} 13. Nxc6 {[%clk 0:02:16]}  Rxc6 {[%clk 0:02:28]} 14. Na4 {[%clk 0:02:07]}  Qa7 {[%clk 0:02:21]} 15. c3 {[%clk 0:02:07]}  b5 {[%clk 0:02:08]} 16. Nc5 {[%clk 0:02:07]}  Bxc5 {[%clk 0:02:08]} 17. dxc5 {[%clk 0:02:07]}  Qxc5 {[%clk 0:02:08]} 18. a4 {[%clk 0:02:02]}  b4 {[%clk 0:01:55]} 19. Be3 {[%clk 0:02:02]}  Qe7 {[%clk 0:01:55]} 20. cxb4 {[%clk 0:01:51]}  Qxb4 {[%clk 0:01:54]} 21. Bd4 {[%clk 0:01:49]}  Bc2 {[%clk 0:01:42]} 0-1


[Site "https://www.chess.com"]

[Event "Titled Tuesday Blitz April 12 Late 2022"]
[White "Samarth, J Rao"]
[Black "Sokolovsky, Yahli"]
[WhiteFideId "46652370"]
[BlackFideId "2820242"]
[WhiteElo "1514"]
[BlackElo "1770"]
[Result "0-1"]
[Round "01"]
[TimeControl "180+1"]
[Date "2022.04.13"]
[WhiteClock "0:00:02"]
[BlackClock "0:00:06"]

1. c4 {[%clk 0:02:49]}  d6 {[%clk 0:02:57]} 2. d4 {[%clk 0:02:45]}  e5 {[%clk 0:02:57]} 3. Nf3 {[%clk 0:02:45]}  e4 {[%clk 0:02:57]} 4. Nfd2 {[%clk 0:02:44]}  f5 {[%clk 0:02:51]} 5. g3 {[%clk 0:02:43]}  Nf6 {[%clk 0:02:47]} 6. Bg2 {[%clk 0:02:43]}  Be7 {[%clk 0:02:42]} 7. O-O {[%clk 0:02:43]}  c6 {[%clk 0:02:41]} 8. d5 {[%clk 0:02:38]}  c5 {[%clk 0:02:40]} 9. f3 {[%clk 0:02:37]}  exf3 {[%clk 0:02:34]} 10. exf3 {[%clk 0:02:36]}  O-O {[%clk 0:02:34]} 11. f4 {[%clk 0:02:37]}  Nbd7 {[%clk 0:02:04]} 12. Nf3 {[%clk 0:02:35]}  Ne4 {[%clk 0:02:03]} 13. Nbd2 {[%clk 0:02:32]}  Ndf6 {[%clk 0:01:53]} 14. Qc2 {[%clk 0:02:30]}  Qb6 {[%clk 0:01:45]} 15. Re1 {[%clk 0:02:28]}  Re8 {[%clk 0:01:36]} 16. Nxe4 {[%clk 0:02:26]}  Nxe4 {[%clk 0:01:34]} 17. Ng5 {[%clk 0:02:24]}  Nxg5 {[%clk 0:01:05]} 18. fxg5 {[%clk 0:02:24]}  Bd7 {[%clk 0:01:06]} 19. h4 {[%clk 0:02:18]}  g6 {[%clk 0:01:04]} 20. b3 {[%clk 0:02:18]}  Bf8 {[%clk 0:00:50]} 21. Bb2 {[%clk 0:02:18]}  Qd8 {[%clk 0:00:40]} 22. Qc3 {[%clk 0:02:16]}  Kf7 {[%clk 0:00:18]} 23. Qh8 {[%clk 0:02:13]}  Re5 {[%clk 0:00:06]} 24. Bxe5 {[%clk 0:01:49]}  dxe5 {[%clk 0:00:06]} 25. Qxe5 {[%clk 0:01:50]}  Bg7 {[%clk 0:00:04]} 26. Qd6 {[%clk 0:01:48]}  Bf8 {[%clk 0:00:02]} 27. Qf4 {[%clk 0:01:47]}  Bg7 {[%clk 0:00:02]} 28. Rad1 {[%clk 0:01:47]}  Qa5 {[%clk 0:00:02]} 29. d6 {[%clk 0:01:46]}  Re8 {[%clk 0:00:02]} 30. Bd5+ {[%clk 0:01:44]}  Kf8 {[%clk 0:00:02]} 31. Re7 {[%clk 0:01:42]}  Rxe7 {[%clk 0:00:02]} 32. dxe7+ {[%clk 0:01:43]}  Kxe7 {[%clk 0:00:03]} 33. Qe3+ {[%clk 0:01:38]}  Kf8 {[%clk 0:00:03]} 34. Qf4 {[%clk 0:01:30]}  Bd4+ {[%clk 0:00:04]} 35. Kg2 {[%clk 0:01:23]}  Qxa2+ {[%clk 0:00:04]} 36. Rd2 {[%clk 0:01:21]}  Qb1 {[%clk 0:00:01]} 37. Qd6+ {[%clk 0:01:11]}  Ke8 {[%clk 0:00:02]} 38. Re2+ {[%clk 0:01:11]}  Kd8 {[%clk 0:00:03]} 39. Qe7+ {[%clk 0:00:52]}  Kc8 {[%clk 0:00:03]} 40. Bxb7+ {[%clk 0:00:44]}  Kc7 {[%clk 0:00:04]} 41. Re1 {[%clk 0:00:25]}  Qxb3 {[%clk 0:00:03]} 42. Bd5 {[%clk 0:00:21]}  Qc2+ {[%clk 0:00:03]} 43. Qe2 {[%clk 0:00:20]}  Qxe2+ {[%clk 0:00:04]} 44. Rxe2 {[%clk 0:00:20]}  a5 {[%clk 0:00:05]} 45. Bg8 {[%clk 0:00:17]}  a4 {[%clk 0:00:03]} 46. Bxh7 {[%clk 0:00:17]}  a3 {[%clk 0:00:04]} 47. Bxg6 {[%clk 0:00:14]}  Bb2 {[%clk 0:00:04]} 48. g4 {[%clk 0:00:06]}  a2 {[%clk 0:00:04]} 49. Re1 {[%clk 0:00:06]}  fxg4 {[%clk 0:00:04]} 50. h5 {[%clk 0:00:06]}  a1=Q {[%clk 0:00:04]} 51. Rxa1 {[%clk 0:00:06]}  Bxa1 {[%clk 0:00:05]} 52. h6 {[%clk 0:00:06]}  Kd6 {[%clk 0:00:05]} 53. Bf7 {[%clk 0:00:06]}  Ke7 {[%clk 0:00:06]} 54. g6 {[%clk 0:00:06]}  Kf8 {[%clk 0:00:06]} 55. Bd5 {[%clk 0:00:04]}  Be5 {[%clk 0:00:06]} 56. g7+ {[%clk 0:00:03]}  Bxg7 {[%clk 0:00:06]} 57. hxg7+ {[%clk 0:00:04]}  Kxg7 {[%clk 0:00:07]} 58. Kg3 {[%clk 0:00:04]}  Kf6 {[%clk 0:00:08]} 59. Ba8 {[%clk 0:00:03]}  Ke5 {[%clk 0:00:07]} 60. Bd5 {[%clk 0:00:04]}  Kd4 {[%clk 0:00:07]} 61. Bg8 {[%clk 0:00:04]}  Bf5 {[%clk 0:00:07]} 62. Bd5 {[%clk 0:00:04]}  Be4 {[%clk 0:00:07]} 63. Bg8 {[%clk 0:00:04]}  Bf3 {[%clk 0:00:08]} 64. Be6 {[%clk 0:00:04]}  Be2 {[%clk 0:00:08]} 65. Bc8 {[%clk 0:00:01]}  Bd1 {[%clk 0:00:06]} 66. Kf2 {[%clk 0:00:02]}  Kxc4 {[%clk 0:00:06]} 67. Ke1 {[%clk 0:00:03]}  Bf3 {[%clk 0:00:05]} 68. Kd2 {[%clk 0:00:03]}  Kd4 {[%clk 0:00:06]} 69. Bf5 {[%clk 0:00:03]}  g3 {[%clk 0:00:06]} 70. Bh3 {[%clk 0:00:02]}  g2 {[%clk 0:00:06]} 0-1


[Site "https://www.chess.com"]

[Event "Titled Tuesday Blitz April 12 Late 2022"]
[White "Santos Ruiz, Miguel"]
[Black "Friedel, Tom"]
[WhiteFideId "22291482"]
[BlackFideId "2002108"]
[WhiteElo "2486"]
[BlackElo "2403"]
[Result "1-0"]
[Round "01"]
[TimeControl "180+1"]
[Date "2022.04.13"]
[WhiteClock "0:00:39"]
[BlackClock "0:00:10"]

1. d4 {[%clk 0:02:57]}  d5 {[%clk 0:03:00]} 2. Nf3 {[%clk 0:02:57]}  Nf6 {[%clk 0:02:59]} 3. Bf4 {[%clk 0:02:58]}  e6 {[%clk 0:02:58]} 4. e3 {[%clk 0:02:57]}  Bd6 {[%clk 0:02:59]} 5. Nbd2 {[%clk 0:02:57]}  Bxf4 {[%clk 0:02:58]} 6. exf4 {[%clk 0:02:57]}  c5 {[%clk 0:02:58]} 7. dxc5 {[%clk 0:02:55]}  Qc7 {[%clk 0:02:56]} 8. g3 {[%clk 0:02:52]}  Qxc5 {[%clk 0:02:54]} 9. Bd3 {[%clk 0:02:52]}  Nc6 {[%clk 0:02:53]} 10. a3 {[%clk 0:02:48]}  O-O {[%clk 0:02:53]} 11. Qe2 {[%clk 0:02:48]}  a6 {[%clk 0:02:46]} 12. h4 {[%clk 0:02:44]}  b5 {[%clk 0:02:45]} 13. h5 {[%clk 0:02:41]}  h6 {[%clk 0:02:44]} 14. Ne5 {[%clk 0:02:40]}  Bb7 {[%clk 0:02:36]} 15. g4 {[%clk 0:02:21]}  Nxe5 {[%clk 0:01:38]} 16. fxe5 {[%clk 0:02:19]}  Ne4 {[%clk 0:01:39]} 17. Nb3 {[%clk 0:01:50]}  Qe7 {[%clk 0:01:35]} 18. O-O-O {[%clk 0:01:41]}  Rac8 {[%clk 0:01:32]} 19. Qe3 {[%clk 0:01:39]}  Rfd8 {[%clk 0:01:09]} 20. Nd4 {[%clk 0:01:33]}  Qg5 {[%clk 0:00:55]} 21. f4 {[%clk 0:01:28]}  Qe7 {[%clk 0:00:55]} 22. Rdg1 {[%clk 0:01:16]}  Kh8 {[%clk 0:00:48]} 23. g5 {[%clk 0:01:15]}  hxg5 {[%clk 0:00:37]} 24. fxg5 {[%clk 0:01:09]}  Qc7 {[%clk 0:00:27]} 25. g6 {[%clk 0:00:57]}  Qxe5 {[%clk 0:00:19]} 26. h6 {[%clk 0:00:54]}  f5 {[%clk 0:00:17]} 27. Nf3 {[%clk 0:00:43]}  Qf6 {[%clk 0:00:12]} 28. hxg7+ {[%clk 0:00:42]}  Kxg7 {[%clk 0:00:12]} 29. Qh6+ {[%clk 0:00:38]}  Kg8 {[%clk 0:00:12]} 30. Qh7+ {[%clk 0:00:38]}  Kf8 {[%clk 0:00:12]} 31. g7+ {[%clk 0:00:39]}  Ke8 {[%clk 0:00:11]} 32. g8=Q+ {[%clk 0:00:38]}  Qf8 {[%clk 0:00:10]} 33. Qhf7# {[%clk 0:00:39]} 1-0


[Site "https://www.chess.com"]

[Event "Titled Tuesday Blitz April 12 Late 2022"]
[White "Sernecki, Franciszek"]
[Black "Karttunen, Mika"]
[WhiteFideId "1169297"]
[BlackFideId "502081"]
[WhiteElo "2165"]
[BlackElo "2343"]
[Result "1-0"]
[Round "01"]
[TimeControl "180+1"]
[Date "2022.04.13"]
[WhiteClock "0:01:02"]
[BlackClock "0:00:42"]

1. d4 {[%clk 0:02:58]}  Nf6 {[%clk 0:02:58]} 2. c4 {[%clk 0:02:58]}  e6 {[%clk 0:02:58]} 3. Nf3 {[%clk 0:02:57]}  b6 {[%clk 0:02:57]} 4. g3 {[%clk 0:02:57]}  Ba6 {[%clk 0:02:54]} 5. Qc2 {[%clk 0:02:55]}  d5 {[%clk 0:02:51]} 6. cxd5 {[%clk 0:02:43]}  exd5 {[%clk 0:02:46]} 7. Bg2 {[%clk 0:02:41]}  Bd6 {[%clk 0:02:42]} 8. O-O {[%clk 0:02:35]}  O-O {[%clk 0:02:41]} 9. Re1 {[%clk 0:02:33]}  c5 {[%clk 0:02:34]} 10. Nc3 {[%clk 0:02:28]}  Nc6 {[%clk 0:02:23]} 11. Bg5 {[%clk 0:02:28]}  Be7 {[%clk 0:02:13]} 12. Rad1 {[%clk 0:02:22]}  c4 {[%clk 0:01:45]} 13. Ne5 {[%clk 0:02:21]}  Bb7 {[%clk 0:01:25]} 14. Bxf6 {[%clk 0:02:12]}  Bxf6 {[%clk 0:01:25]} 15. Nxd5 {[%clk 0:02:02]}  Bxe5 {[%clk 0:01:13]} 16. dxe5 {[%clk 0:02:00]}  Nxe5 {[%clk 0:01:13]} 17. f4 {[%clk 0:01:34]}  Ng4 {[%clk 0:01:10]} 18. h3 {[%clk 0:01:31]}  Bxd5 {[%clk 0:01:05]} 19. hxg4 {[%clk 0:01:29]}  Qe7 {[%clk 0:00:55]} 20. Bxd5 {[%clk 0:01:26]}  Qe3+ {[%clk 0:00:55]} 21. Kg2 {[%clk 0:01:26]}  Rac8 {[%clk 0:00:55]} 22. Bf3 {[%clk 0:01:24]}  b5 {[%clk 0:00:55]} 23. Qc3 {[%clk 0:01:24]}  Qc5 {[%clk 0:00:55]} 24. Qd4 {[%clk 0:01:21]}  Qc7 {[%clk 0:00:53]} 25. Qd6 {[%clk 0:01:18]}  Qa5 {[%clk 0:00:52]} 26. a3 {[%clk 0:01:15]}  c3 {[%clk 0:00:47]} 27. bxc3 {[%clk 0:01:13]}  Rxc3 {[%clk 0:00:47]} 28. Qb4 {[%clk 0:01:04]}  Rxa3 {[%clk 0:00:46]} 29. Qxa5 {[%clk 0:01:03]}  Rxa5 {[%clk 0:00:46]} 30. Ra1 {[%clk 0:01:03]}  Rxa1 {[%clk 0:00:40]} 31. Rxa1 {[%clk 0:01:04]}  Rb8 {[%clk 0:00:40]} 32. Rxa7 {[%clk 0:01:04]}  b4 {[%clk 0:00:40]} 33. Rb7 {[%clk 0:01:04]}  Rxb7 {[%clk 0:00:40]} 34. Bxb7 {[%clk 0:01:04]}  Kf8 {[%clk 0:00:41]} 35. Bd5 {[%clk 0:01:04]}  Ke7 {[%clk 0:00:41]} 36. Bb3 {[%clk 0:01:04]}  f6 {[%clk 0:00:41]} 37. Kf3 {[%clk 0:01:03]}  Kd6 {[%clk 0:00:42]} 38. Ke4 {[%clk 0:01:02]}  Kc5 {[%clk 0:00:42]} 39. e3 {[%clk 0:01:02]} 1-0


[Site "https://www.chess.com"]

[Event "Titled Tuesday Blitz April 12 Late 2022"]
[White "Skatchkov, Valery"]
[Black "Rustemov, Alexander"]
[WhiteFideId "24195812"]
[BlackFideId "4119002"]
[WhiteElo "2196"]
[BlackElo "2803"]
[Result "1-0"]
[Round "01"]
[TimeControl "180+1"]
[Date "2022.04.13"]
[WhiteClock "0:00:22"]
[BlackClock "0:00:29"]

1. c4 {[%clk 0:02:57]}  e6 {[%clk 0:02:58]} 2. Nf3 {[%clk 0:02:53]}  d5 {[%clk 0:02:58]} 3. e3 {[%clk 0:02:53]}  Nf6 {[%clk 0:02:58]} 4. Nc3 {[%clk 0:02:54]}  Nbd7 {[%clk 0:02:52]} 5. Qc2 {[%clk 0:02:54]}  c6 {[%clk 0:02:49]} 6. b3 {[%clk 0:02:53]}  Bd6 {[%clk 0:02:48]} 7. Bb2 {[%clk 0:02:54]}  Qe7 {[%clk 0:02:46]} 8. Be2 {[%clk 0:02:50]}  O-O {[%clk 0:02:45]} 9. g4 {[%clk 0:02:49]}  Nxg4 {[%clk 0:02:07]} 10. Rg1 {[%clk 0:02:49]}  f5 {[%clk 0:02:06]} 11. h3 {[%clk 0:02:16]}  Ngf6 {[%clk 0:02:03]} 12. O-O-O {[%clk 0:02:16]}  Ne5 {[%clk 0:01:46]} 13. Nxe5 {[%clk 0:01:45]}  Bxe5 {[%clk 0:01:46]} 14. f4 {[%clk 0:01:46]}  Bd6 {[%clk 0:01:44]} 15. Rg2 {[%clk 0:01:45]}  Bd7 {[%clk 0:01:36]} 16. Rdg1 {[%clk 0:01:45]}  Rf7 {[%clk 0:01:34]} 17. d3 {[%clk 0:01:30]}  Bc5 {[%clk 0:01:28]} 18. Rg3 {[%clk 0:01:23]}  a6 {[%clk 0:01:20]} 19. Na4 {[%clk 0:01:21]}  Ba3 {[%clk 0:01:17]} 20. c5 {[%clk 0:01:17]}  Bxb2+ {[%clk 0:01:17]} 21. Qxb2 {[%clk 0:01:17]}  Re8 {[%clk 0:01:15]} 22. Qe5 {[%clk 0:01:17]}  Bc8 {[%clk 0:01:10]} 23. Nb6 {[%clk 0:01:16]}  Qxc5+ {[%clk 0:01:06]} 24. Nc4 {[%clk 0:01:11]}  Rd8 {[%clk 0:00:48]} 25. Kb1 {[%clk 0:00:35]}  Qe7 {[%clk 0:00:42]} 26. Nb6 {[%clk 0:00:35]}  Nd7 {[%clk 0:00:38]} 27. Nxd7 {[%clk 0:00:31]}  Rxd7 {[%clk 0:00:37]} 28. Bh5 {[%clk 0:00:31]}  g6 {[%clk 0:00:34]} 29. Bxg6 {[%clk 0:00:30]}  hxg6 {[%clk 0:00:32]} 30. Rxg6+ {[%clk 0:00:31]}  Kh7 {[%clk 0:00:28]} 31. R6g5 {[%clk 0:00:22]}  Rf6 {[%clk 0:00:28]} 32. Rh5+ {[%clk 0:00:20]}  Rh6 {[%clk 0:00:28]} 33. Rxh6+ {[%clk 0:00:20]}  Kxh6 {[%clk 0:00:29]} 34. Qh8+ {[%clk 0:00:21]}  Qh7 {[%clk 0:00:29]} 35. Qf6+ {[%clk 0:00:22]} 1-0


[Site "https://www.chess.com"]